Workbook

Sheet F.4 CRITERIOS DE DESEMPATE
H2: CRITERIOS DE DESEMPATE PARA LA PROVISIÓN DE EMPLEO DE CARRERA MEDIANTE LA FIGURA DE ENCARGO | AA2: Código: FO-GTH-077
AA3: Versión: 1
H4: PROCESO DE GESTIÓN DEL TALENTO HUMANO | AA4: Fecha de Aprobación: 22 de diciembre de 2021
B5: Elaboró: Técnico Administrativo de la Dirección de Gestión Humana | H5: Revisó: Director de Gestión Humana | AA5: Aprobó: Comité Técnico de Calidad
B7: La Administración Municipal, en cumplimiento de la Ley 1960 de 2019 y Criterio Unificado expedido por la Comisión Nacional del Servicio Civil, efectúa el presente estudio, para decidir sobre el servidor público que obtenga la más alta calificación y ser encargado por derecho preferente.
B8: FECHA:
B9: IDENTIFICACION DEL EMPLEO: | H9: CARGO: | L9: CÓDIGO: | P9: GRADO : | T9: FICHA: | Y9: VACANTE DEFINITIVA: | AD9: VACANTE DEFINITIVA:
B10: DEPENDENCIA:
B12: PROPÓSITO PRINCIPAL DEL EMPLEO
B13: REQUISITOS DEL EMPLEO | C13: NÚCLEO BASICO DEL CONOCIMIENTO
C14: REQUISITOS DE EXPERIENCIA
C15: EQUIVALENCIA
B16: NORMATIVIDAD | H16: Ley 909 de 2004, Decreto 1082 de 2015, Decreto 648 de 2017, Circular 20191000000117 del 29/07/2019, Ley 1960/2019 y Criterio unificado CNSC
B17: POSTULACIÓN SERVIDOR PÚBLICO CON DERECHOS DE CARRERA | D17: a) 20 | H17: b) 15 | K17: c) 10 | O17: d) 5 | S17: e) 20 | W17: f) 5 | Z17: g) 20 | AD17: h) 5
B18: NOMBRE Y APELLIDOS | C18: CARGO DE CARRERA | D18: Mayor experiencia relacionada, de acuerdo al Manual de Funciones. | F18: Peso porcentual | H18: Mayor puntaje obtenido en la EDL | I18: Peso porcentual | K18: Pertenecer a la misma dependencia en la que se encuentra el empleo objeto de provisión | M18: Peso porcentual | O18: Distinciones, reconocimientos u honores en el ejercicio de sus funciones durante los últimos cuatro (4) años | Q18: Peso porcentual | S18: Acreditación de educación formal relacionada y adicional al requisito mínimo exigido para el cargo, la cual deberá estar vigente en su historia laboral (Se asignará puntaje por cada título obtenido en el nivel académico) | U18: Peso porcentual | W18: Acreditación de su condición de victima, en términos el articulo 131 de la Ley 1448 de 2011. | Z18: Servidor con derechos de carrera más antiguo de la Entidad | AB18: Peso porcentual | AD18: Acreditación por haber sufragado en las elecciones inmediatamente anteriores, (Art. 5 de la ley 403/97 | AG18: RESULTADO FINAL (Sumatoria del resultado de cada uno de los criterios de desempate)
D19: Tiempo (meses) | E19: Puntaje | F19: 20 | H19: 100 | I19: =15*H19/100 -> 15 | K19: Tiempo (meses) | L19: Puntaje | M19: 10 | O19: No. de reconicmientos | P19: Puntaje | Q19: 5 | S19: No. de títulos adicionales | T19: Puntaje | U19: 20 | W19: Acreditación | X19: Puntaje | Z19: Tiempo de servicios en meses | AA19: Puntaje | AB19: 20 | AD19: Acreditación | AE19: Puntaje
D20: De uno (1) a dieciocho (18) meses | E20: 10 | F20: =E20*F19/100 -> 2 | K20: De uno (1) a veinticuatro (24) meses | L20: 14 | M20: =L20*M19/100 -> 1.4 | O20: De uno (1) a (2) | P20: 10 | Q20: =P20*Q19/100 -> 0.5 | S20: Bachiller | T20: 4 | U20: =T20*U19/100 -> 0.8 | W20: SI | X20: 5 | Z20: De uno (1) a veinticuatro (24) meses | AA20: 14.3 | AB20: =AA20*AB19/100 -> 2.86 | AD20: SI | AE20: 5
S21: Técnico | T21: 8 | U21: =T21*U19/100 -> 1.6
D22: De diecinueve (19) a treinta y seis (36) meses | E22: 20 | F22: =E22*F19/100 -> 4 | K22: De veinticinco (25) a treinta y seis (36) meses | L22: 21 | M22: =L22*M19/100 -> 2.1 | O22: De tres (3) a cuatro (4) | P22: 20 | Q22: =P22*Q19/100 -> 1 | S22: Tecnólogo o Especialización Técnica | T22: 13 | U22: =T22*U19/100 -> 2.6 | Z22: De veinticinco (25) a treinta y seis (36) meses | AA22: 21.4 | AB22: =AA22*AB19/100 -> 4.28
S23: Profesional o Especialización Tecnológica | T23: 15 | U23: =T23*U19/100 -> 3 | W23: NO | X23: 0
D24: De treinta y siete (37) a cincuenta y cuatro (54) meses | E24: 30 | F24: =E24*F19/100 -> 6 | K24: De treinta y siete (37) a cuarenta y ocho (48) meses | L24: 29 | M24: =L24*M19/100 -> 2.9 | O24: De cinco (5) cinco a seis (6) | P24: 30 | Q24: =P24*Q19/100 -> 1.5 | S24: Especialización | T24: 17 | U24: =T24*U19/100 -> 3.4 | Z24: De treinta y siete (37) a cuarenta y ocho (48) meses | AA24: 28.6 | AB24: =AA24*AB19/100 -> 5.72 | AD24: NO | AE24: 0
S25: Maestría | T25: 21 | U25: =T25*U19/100 -> 4.2
D26: De cincuenta y cinco (55) meses, en adelante | E26: 40 | F26: =E26*F19/100 -> 8 | K26: De cuarenta y nueve (49) meses en adelante | L26: 36 | M26: =L26*M19/100 -> 3.6 | O26: De siete (7) en adelante | P26: 40 | Q26: =P26*Q19/100 -> 2 | S26: Doctorado | T26: 22 | U26: =T26*U19/100 -> 4.4 | Z26: De cuarenta y nueve (49) meses en adelante | AA26: 35.7 | AB26: =AA26*AB19/100 -> 7.14
E27: =SUM(E20:E26) -> 100 | F27: =SUM(F20:F26) -> 20 | H27: 100 | I27: =+I19 -> 15 | L27: =SUM(L20:L26) -> 100 | M27: =SUM(M20:M26) -> 10 | P27: =SUM(P20:P26) -> 100 | Q27: =SUM(Q20:Q26) -> 5 | S27: =SUM(T20:T26) -> 100 | U27: =SUM(U20:U26) -> 20 | AA27: =SUM(AA20:AA26) -> 100 | AB27: =SUM(AB20:AB26) -> 20
F28: 4
B29: Ejercicio | D29: Veinte meses de experiencia | F29: 4 | H29: 98 | I29: =(I27*H29)/100 -> 14.7 | K29: 24 meses | M29: 1.4 | O29: Dos reconocimientos | Q29: 1 | S29: Especialista en Derecho Laboral | U29: 3.4 | W29: No registra | X29: 0 | Z29: Cincuenta meses de antigüedad en la entidad | AB29: 7 | AD29: Si registra | AE29: 5 | AG29: =(F29+I29+M29+Q29+U29+X29+AB29+AE29) -> 36.5
B31: RESULTADO DEL PRESENTE ESTUDIO:
B32: Efectuada la evaluación de presupuestos, se ha identificado que varios servidores de carrera administrativa cumplen con Ia totalidad de los requisitos exigidos en el artículo 1 de la Ley 1960/19, que modifica el artículo 24 de la Ley 909 de 2004, situación por la cual, la Entidad Municipio de Fusagasugá, bajo parámetros objetivos y fundamentado en el mérito, evalúa los criterios de desempate y define sobre que funcionario recae el encargo por haber obtenido la más alta calificación.
B33: Si con los resultados del presente estudio persiste el empate de funcionarios calificados para obtener el encargo del empleo en estudio, la asignación del mismo, se decidirá a la suerte por medio de balotas, en presencia de pluralidad de servidores de la Entidad, entre ellos Control Interno.
B34: SECRETARIA ADMINISTRATIVA | I34: DIRECTOR GESTIÓN HUMANA | T34: PROFESIONAL ESPECIALIZADO | AA34: PROFESIONAL UNIVERSITARIO
